[Event "Irish New Year Events-GM 2020"]
[Site "Dublin"]
[Date "2020.01.03"]
[Round "1.2"]
[White "Pajeken, Jakob Leon"]
[Black "Ryan, Joseph"]
[Result "1/2-1/2"]
[ECO "E43"]
[WhiteElo "2327"]
[BlackElo "2293"]
[Annotator "NA"]
[PlyCount "49"]
[EventDate "2020.01.02"]
[EventType "tourn"]
[EventCountry "IRL"]
[SourceTitle "playchess.com"]
[Source "ChessBase"]
[SourceQuality "1"]
[TimeControl "40/5400+30:1800+30"]

{[%evp 23,49,16,43,38,52,20,12,6,8,-10,32,-9,45,47,58,33,42,-43,0,-38,-34,-20,-30,-28,-39,-34,-25,-34]} 1. d4 {[%emt 1:30:30]} Nf6 {[%emt 1:30:30]} 2. Nf3 {[%emt 0:00:30]} e6 {[%emt 0:00:30]} 3. e3 {[%emt 0:00:30]} b6 {[%emt 0:00:30]} 4. c4 {[%emt 0:00:30]} Bb7 {[%emt 0:00:30]} 5. Nc3 {[%emt 0:00:30]} Bb4 {[%emt 0:00:30]} 6. Bd3 {[%emt 0:00:30]} Ne4 {[%emt 0:00:30]} 7. Qc2 {[%emt 0:00:30]} Bxc3+ {[%emt 0:00:30]} 8. bxc3 {[%emt 0:00:30]} f5 {[%emt 0:00:30]} 9. O-O {[%emt 0:00:30]} O-O {[%emt 0:00:30]} 10. Nd2 {[%emt 0:00:30]} Qh4 {[%emt 0:00:30]} 11. f3 {[%emt 0:00:30]} Nxd2 {[%emt 0:00:30]} 12. Bxd2 {[%emt 0:00:30]} Nc6 {[%emt 0:00:30]} 13. Rae1 {[%emt 0:00:30] E43: Nimzo-Indian: Rubinstein: 4...b6} (13. Rab1 Rf6 14. Be1 Qh6 15. Kh1 d6 16. Bf2 Raf8 17. c5 dxc5 18. dxc5 Ne5 19. Be2 Rg6 20. Bg1 Qg5 21. Bb5 {0-1 (63) Duda,J (2660)-Kovalenko,I (2680) Tallinn 2016}) 13... Rf6 {[%emt 0:00:30]} 14. Bc1 $146 {[%emt 0:00:30]} ({Predecessor:} 14. e4 f4 15. e5 Rh6 16. h3 Rf8 17. Rf2 Na5 18. Kf1 Qg3 19. d5 Ba6 20. Re4 g5 21. Bc1 g4 22. fxg4 exd5 23. Rexf4 Re8 24. R4f3 Qh4 25. Bxh6 Qxh6 26. Bxh7+ {1-0 (26) Karavade,E (2330)-Van der Plas,R (2165) Reykjavik 2011}) 14... Na5 {[%emt 0:00:30]} 15. g3 {[%emt 0:00:30] The position is equal.} Qh5 {[%emt 0:00:30]} 16. Qe2 {[%emt 0:00:30]} Raf8 {[%emt 0:00:30]} 17. Ba3 {[%emt 0:00:30]} R8f7 {[%emt 0:00:30]} (17... d6 $11) 18. c5 $14 {[%emt 0:00:30]} g5 {[%emt 0:00:30]} 19. Ba6 {[%emt 0:00:30]} Ba8 {[%emt 0:00:30]} 20. Qf2 {[%emt 0:00:30]} (20. Rf2 $14) 20... g4 {[%emt 0:00:30]} (20... f4 {is more complex.} 21. exf4 gxf4 22. Re5 fxg3 23. Qxg3+ Qg6) 21. cxb6 {[%emt 0:00:30]} axb6 {[%emt 0:00:30]} 22. fxg4 {[%emt 0:00:30]} Qxg4 {[%emt 0:00:30] [#] Hoping for ...Qe4.} 23. Qf4 {[%emt 0:00:30]} Qxf4 {[%emt 0:00:30]} ({Much weaker is} 23... Qh3 24. Rf2 $14) 24. Rxf4 {[%emt 0:00:30]} Bd5 {[%emt 0:00:30]} 25. Bb4 {[%emt 0:00:30] Accuracy: White = 32%, Black = 47%.} 1/2-1/2

[Event "Irish New Year Events-GM 2020"]
[Site "Dublin"]
[Date "2020.01.03"]
[Round "2.1"]
[White "Astaneh Lopez, Alex"]
[Black "Li, Henry"]
[Result "0-1"]
[ECO "A49"]
[WhiteElo "2432"]
[BlackElo "2288"]
[Annotator "ChessBase"]
[PlyCount "76"]
[EventDate "2020.01.02"]
[EventType "tourn"]
[EventCountry "IRL"]
[SourceTitle "playchess.com"]
[Source "ChessBase"]
[SourceQuality "1"]
[TimeControl "40/5400+30:1800+30"]

1. d4 {[%emt 1:30:30]} Nf6 {[%emt 1:30:30]} 2. Nf3 {[%emt 0:00:30]} g6 {[%emt 0:00:30]} 3. g3 {[%emt 0:00:30]} Bg7 {[%emt 0:00:30]} 4. Bg2 {[%emt 0:00:30]} O-O {[%emt 0:00:30]} 5. O-O {[%emt 0:00:30]} d6 {[%emt 0:00:30]} 6. Nc3 {[%emt 0:00:30]} c6 {[%emt 0:00:30]} 7. e4 {[%emt 0:00:30]} Qa5 {[%emt 0:00:30]} 8. Re1 {[%emt 0:00:30]} e5 9. h3 Re8 10. Be3 {[%emt 0:01:00]} Nbd7 {[%emt 0:01:30]} 11. dxe5 {[%emt 0:00:30]} dxe5 {[%emt 0:00:30]} 12. Nd2 {[%emt 0:00:30]} Qc7 {[%emt 0:00:30]} 13. Nc4 {[%emt 0:00:30]} Bf8 {[%emt 0:00:30]} 14. a4 {[%emt 0:00:30]} a5 {[%emt 0:00:30]} 15. Qf3 {[%emt 0:00:30]} Be7 {[%emt 0:00:30]} 16. Bf1 {[%emt 0:00:30]} b6 {[%emt 0:00:30]} 17. Rad1 {[%emt 0:00:30]} Rb8 {[%emt 0:00:30]} 18. Bg5 {[%emt 0:00:30]} Kg7 {[%emt 0:00:30]} 19. Qe3 {[%emt 0:00:30]} Bc5 {[%emt 0:00:30]} 20. Bh6+ {[%emt 0:00:30]} Kg8 {[%emt 0:00:30]} 21. Qf3 {[%emt 0:00:30]} Bf8 {[%emt 0:00:30]} 22. Bg5 {[%emt 0:00:30]} Kg7 {[%emt 0:00:30]} 23. b3 {[%emt 0:00:30]} h6 {[%emt 0:00:30]} 24. Bc1 {[%emt 0:00:30]} Be7 {[%emt 0:00:30]} 25. Bb2 {[%emt 0:00:30]} Bb4 {[%emt 0:00:30]} 26. Ne3 {[%emt 0:00:30]} Nh7 {[%emt 0:00:30]} 27. h4 {[%emt 0:00:30]} Ndf6 {[%emt 0:00:30]} 28. Re2 {[%emt 0:00:30]} Bc5 {[%emt 0:00:30]} 29. Red2 {[%emt 0:00:30]} h5 {[%emt 0:00:30]} 30. Ne2 {[%emt 0:00:30]} Qe7 {[%emt 0:00:30]} 31. Nc4 {[%emt 0:00:30]} Ng4 {[%emt 0:00:30]} 32. Nf4 {[%emt 0:00:30]} Nxf2 {[%emt 0:00:30]} 33. Rxf2 {[%emt 0:00:30]} Bg4 {[%emt 0:00:30]} 34. Nxe5 {[%emt 0:00:30]} Bxf3 {[%emt 0:00:30]} 35. Nexg6+ {[%emt 0:00:30]} Qf6 {[%emt 0:00:30]} 36. Bxf6+ {[%emt 0:00:30]} Nxf6 {[%emt 0:00:30]} 37. e5 {[%emt 0:00:30]} Bxd1 {[%emt 0:00:30]} 38. exf6+ {[%emt 0:00:30]} Kxf6 {[%emt 0:00:30]} 0-1

[Event "Irish New Year Events-GM 2020"]
[Site "Dublin"]
[Date "2020.01.03"]
[Round "2.3"]
[White "Brady, Stephen"]
[Black "Collins, Sam E."]
[Result "1/2-1/2"]
[ECO "C54"]
[WhiteElo "2285"]
[BlackElo "2446"]
[Annotator "NA"]
[PlyCount "138"]
[EventDate "2020.01.02"]
[EventType "tourn"]
[EventCountry "IRL"]
[SourceTitle "playchess.com"]
[Source "ChessBase"]
[SourceQuality "1"]
[TimeControl "40/5400+30:1800+30"]

1. e4 {[%emt 0:00:00]} e5 {[%emt 0:02:37]} 2. Nf3 {[%emt 0:00:00]} Nc6 {[%emt 0:00:12]} 3. Bc4 {[%emt 0:00:00]} Bc5 {[%emt 0:00:06]} 4. c3 {[%emt 0:01:19]} Nf6 {[%emt 0:00:19]} 5. d3 {[%emt 0:00:52]} a6 {[%emt 0:01:24]} 6. Nbd2 {[%emt 0:04:28]} d6 {[%emt 0:00:54]} 7. Bb3 {[%emt 0:00:10]} Ba7 {[%emt 0:00:14]} 8. h3 {[%emt 0:06:05]} O-O {[%emt 0:06:56]} 9. Nf1 {[%emt 0:00:07]} d5 {[%emt 0:00:17]} 10. Qe2 {[%emt 0:00:08] C54: Giuoco Piano: 4 c3 Nf6, main lines with 5 d4 and 5 d3} Be6 {[%emt 0:00:21]} 11. Ng3 {[%emt 0:09:04]} dxe4 {[%emt 0:09:41]} 12. dxe4 {[%emt 0:01:47]} Bxb3 {[%emt 0:00:08]} 13. axb3 {[%emt 0:00:05] [#]} a5 $146 {[%emt 0:03:47]} ({Predecessor:} 13... Qd7 14. Nh2 a5 15. O-O Qe6 16. Qb5 Bb6 17. Nf3 Ne8 {½-½ (43) Tiviakov,S (2663)-Sargissian,G (2676) Antalya 2013}) 14. Bg5 {[%emt 0:10:45]} Qd6 {[%emt 0:11:11]} 15. Nf5 {[%emt 0:04:16]} Qe6 {[%emt 0:04:35]} 16. Bxf6 {[%emt 0:00:25]} Qxf6 {[%emt 0:01:32]} 17. O-O {[%emt 0:00:55]} Rfd8 {[%emt 0:07:16]} 18. Rfd1 {[%emt 0:01:58]} Bb6 {[%emt 0:03:34]} 19. Nd2 {[%emt 0:02:03]} Ne7 {[%emt 0:04:33]} 20. Nxe7+ {[%emt 0:04:17]} Qxe7 {[%emt 0:01:28]} 21. Nc4 {[%emt 0:04:31]} Qc5 $1 {[%emt 0:03:48]} 22. Ne3 {[%emt 0:00:41]} c6 {[%emt 0:01:36]} 23. Rxd8+ {[%emt 0:01:48]} Rxd8 {[%emt 0:05:13]} 24. Rd1 {[%emt 0:00:09]} Qf8 {[%emt 0:02:06]} 25. Rd3 {[%emt 0:08:25]} Rxd3 {[%emt 0:01:20]} (25... Rd5 $2 {[%emt 0:28:42][%mdl 8192]}) (25... g6 $11) 26. Qxd3 {[%emt 0:00:06]} Qd8 $19 {[%emt 0:00:23]} 27. Qxd8+ {[%emt 0:00:17]} Bxd8 {[%emt 0:00:05]} 28. Kf1 {[%emt 0:00:16]} f6 {[%emt 0:00:50]} 29. Ke2 {[%emt 0:00:11]} Kf7 {[%emt 0:00:20]} 30. Kd3 {[%emt 0:00:47]} Ke6 {[%emt 0:00:29]} 31. f3 {[%emt 0:01:04]} g6 {[%emt 0:06:44]} 32. g4 {[%emt 0:00:07]} Bb6 {[%emt 0:02:02]} 33. Nc4 {[%emt 0:11:26]} Bd8 {[%emt 0:00:10]} 34. Ne3 {[%emt 0:00:22]} Bb6 {[%emt 0:00:06]} 35. Nc4 {[%emt 0:00:05]} Bc7 {[%emt 0:00:32]} 36. Ne3 {[%emt 0:00:07]} Bd8 {[%emt 0:00:14]} 37. Nc4 {[%emt 0:01:00]} Bc7 {[%emt 0:01:29]} 38. Ne3 {[%emt 0:04:08]} Kf7 {[%emt 0:01:07]} 39. Nc4 {[%emt 0:03:22]} Ke7 {[%emt 0:01:18]} 40. Ne3 {[%emt 0:00:23]} Ke6 {[%emt 0:00:06]} 41. Nc4 {[%emt 0:30:58]} b5 {[%emt 0:32:28]} 42. Ne3 {[%emt 0:00:17]} Bb6 {[%emt 0:00:20]} 43. Ng2 {[%emt 0:01:04]} Bf2 {[%emt 0:00:00]} 44. Ke2 {[%emt 0:00:06]} Bb6 {[%emt 0:00:00]} 45. Kd3 {[%emt 0:00:04]} Bf2 {[%emt 0:00:00]} 46. Ke2 {[%emt 0:00:03]} Bc5 {[%emt 0:00:10]} 47. Kd3 {[%emt 0:00:15]} Bf8 {[%emt 0:00:30]} 48. Ke2 {[%emt 0:15:57]} Bh6 {[%emt 0:00:32]} 49. Kd3 {[%emt 0:00:20]} Bc1 {[%emt 0:01:25]} 50. Kc2 {[%emt 0:00:06]} Bg5 {[%emt 0:00:17]} 51. Kd3 {[%emt 0:00:13]} Kd6 {[%emt 0:05:05]} 52. Ne1 {[%emt 0:00:42]} Bh4 {[%emt 0:00:29]} 53. Ng2 {[%emt 0:00:07]} Bg3 {[%emt 0:00:56]} 54. Ne3 {[%emt 0:00:33]} Kc5 {[%emt 0:00:31]} 55. Nc2 {[%emt 0:01:21]} Kd6 {[%emt 0:01:52]} 56. Ne3 {[%emt 0:01:19]} Bf2 {[%emt 0:00:30]} 57. Ng2 {[%emt 0:00:17]} Kc5 {[%emt 0:00:11]} 58. Ke2 {[%emt 0:00:10]} Bg3 {[%emt 0:00:27]} 59. Kd3 {[%emt 0:00:12]} Kb6 {[%emt 0:02:12]} 60. Ne3 {[%emt 0:00:09]} Bf4 {[%emt 0:00:10]} 61. Ng2 {[%emt 0:00:06]} Bg5 {[%emt 0:00:36]} 62. Ne1 {[%emt 0:00:19]} Bh4 {[%emt 0:01:00]} 63. Ng2 {[%emt 0:00:06]} Bg3 {[%emt 0:00:26]} 64. Ne3 {[%emt 0:00:06]} Kc5 {[%emt 0:00:34]} 65. Nc2 {[%emt 0:00:21]} Kd6 {[%emt 0:00:17]} 66. Ne3 {[%emt 0:01:05]} Bf2 {[%emt 0:01:38]} 67. Ng2 {[%emt 0:00:28]} Kc5 {[%emt 0:03:50]} 68. Ke2 {[%emt 0:00:07]} Bg3 {[%emt 0:00:14]} 69. Kd3 {[%emt 0:00:09]} Bf2 {[%emt 0:00:24]} 1/2-1/2

[Event "Irish New Year Events-GM 2020"]
[Site "Dublin"]
[Date "2020.01.03"]
[Round "2.4"]
[White "Kosten, Anthony C."]
[Black "Pajeken, Jakob Leon"]
[Result "1/2-1/2"]
[ECO "A07"]
[WhiteElo "2402"]
[BlackElo "2327"]
[Annotator "NA"]
[PlyCount "87"]
[EventDate "2020.01.02"]
[EventType "tourn"]
[EventCountry "IRL"]
[SourceTitle "playchess.com"]
[Source "ChessBase"]
[SourceQuality "1"]
[TimeControl "40/5400+30:1800+30"]

1. Nf3 {[%emt 0:00:00]} d5 {[%emt 0:00:00]} 2. g3 {[%emt 0:00:00]} Nf6 {[%emt 0:00:00]} 3. Bg2 {[%emt 0:00:00]} Nbd7 {[%emt 0:00:34]} 4. c4 {[%emt 0:01:37]} dxc4 {[%emt 0:00:11]} 5. Na3 {[%emt 0:01:18]} e5 {[%emt 0:00:26]} 6. Nxc4 {[%emt 0:01:43] A07: Réti Opening: New York and Capablanca Systems} e4 {[%emt 0:00:28]} 7. Ng5 {[%emt 0:01:06]} Nc5 {[%emt 0:00:17] [#]} 8. d3 $1 $146 {[%emt 0:02:17]} ({Predecessor:} 8. Ne5 Be6 9. Nxe6 fxe6 10. O-O Qd4 11. d3 Qxe5 {1-0 (53) Pantsulaia,L (2607)-Svane,R (2555) Doha 2016}) 8... Bg4 {[%emt 0:00:36]} 9. Nxe4 {[%emt 0:12:15]} Nfxe4 {[%emt 0:00:10]} 10. dxe4 {[%emt 0:06:35]} Qxd1+ {[%emt 0:00:11]} 11. Kxd1 {[%emt 0:00:07]} O-O-O+ {[%emt 0:00:06]} 12. Ke1 {[%emt 0:03:09]} Be6 {[%emt 0:00:13]} 13. Nd2 {[%emt 0:05:42]} g6 {[%emt 0:10:51]} 14. e5 {[%emt 0:09:34]} Bg7 {[%emt 0:01:21]} 15. Nf3 {[%emt 0:04:46]} Nd7 {[%emt 0:09:32]} 16. Ng5 {[%emt 0:07:51]} Nxe5 {[%emt 0:02:09]} 17. Nxe6 {[%emt 0:00:07]} fxe6 {[%emt 0:00:08]} 18. Bf4 {[%emt 0:06:44]} h6 {[%emt 0:15:36]} 19. h4 {[%emt 0:02:22]} Ng4 {[%emt 0:12:19]} 20. Rb1 {[%emt 0:06:19]} e5 {[%emt 0:04:32]} 21. Bh3 {[%emt 0:00:45]} exf4 {[%emt 0:00:07]} 22. Bxg4+ {[%emt 0:00:04]} Kb8 {[%emt 0:00:06]} 23. gxf4 {[%emt 0:00:15]} Rd6 {[%emt 0:04:15]} 24. Bf3 {[%emt 0:03:07]} Rf8 {[%emt 0:06:01]} 25. e3 {[%emt 0:01:27]} Rb6 {[%emt 0:00:36]} 26. Rg1 {[%emt 0:02:33]} Bxb2 $16 {[%emt 0:15:02]} 27. Kd2 {[%emt 0:03:24]} Rff6 {[%emt 0:07:28]} 28. Be4 {[%emt 0:09:39]} Rfd6+ {[%emt 0:05:26]} 29. Kc2 {[%emt 0:01:19]} Bf6 {[%emt 0:00:23]} 30. Rxb6 {[%emt 0:02:27]} axb6 {[%emt 0:00:11]} 31. Rxg6 {[%emt 0:00:44]} Bxh4 {[%emt 0:00:14]} 32. Rxd6 {[%emt 0:02:52]} cxd6 {[%emt 0:00:09]} 33. f3 {[%emt 0:00:26]} Kc7 {[%emt 0:02:22]} 34. Kd3 {[%emt 0:00:57]} b5 {[%emt 0:00:43]} 35. Kd4 {[%emt 0:00:54]} b4 {[%emt 0:00:37]} 36. Bd5 {[%emt 0:02:44]} Be1 {[%emt 0:02:43]} 37. Ke4 {[%emt 0:00:22]} Kd7 {[%emt 0:01:03]} 38. Kf5 {[%emt 0:00:21]} Ke7 {[%emt 0:00:11]} 39. e4 {[%emt 0:00:16]} Bd2 {[%emt 0:00:07]} 40. e5 {[%emt 0:00:20]} b6 {[%emt 0:00:43]} 41. Bc4 {[%emt 0:30:41]} h5 {[%emt 0:30:46]} 42. exd6+ {[%emt 0:00:39]} Kxd6 {[%emt 0:00:10]} 43. Kg5 {[%emt 0:00:25]} Ke7 {[%emt 0:00:31]} 44. Kxh5 {[%emt 0:00:49]} 1/2-1/2

[Event "Irish New Year Events-GM 2020"]
[Site "Dublin"]
[Date "2020.01.03"]
[Round "3.4"]
[White "Li, Henry"]
[Black "Kosten, Anthony C."]
[Result "1/2-1/2"]
[ECO "C78"]
[WhiteElo "2288"]
[BlackElo "2402"]
[Annotator "NA"]
[PlyCount "42"]
[EventDate "2020.01.02"]
[EventType "tourn"]
[EventCountry "IRL"]
[SourceTitle "playchess.com"]
[Source "ChessBase"]
[SourceQuality "1"]
[TimeControl "40/5400+30:1800+30"]

1. e4 {[%emt 0:00:00]} e5 {[%emt 0:00:00]} 2. Nf3 {[%emt 0:00:01]} Nc6 {[%emt 0:00:00]} 3. Bb5 {[%emt 0:00:10]} a6 {[%emt 0:00:00]} 4. Ba4 {[%emt 0:00:08]} Nf6 {[%emt 0:00:07]} 5. O-O {[%emt 0:00:19]} Bc5 {[%emt 0:01:14]} 6. c3 {[%emt 0:03:35]} O-O {[%emt 0:00:13]} 7. d4 {[%emt 0:02:17]} Ba7 {[%emt 0:00:06]} 8. dxe5 {[%emt 0:10:11]} Nxe4 {[%emt 0:03:25]} 9. Qd5 {[%emt 0:03:02]} Nc5 {[%emt 0:04:17]} 10. Bc2 {[%emt 0:01:01]} Ne7 {[%emt 0:05:14]} 11. Qd1 {[%emt 0:03:21]} d6 {[%emt 0:06:56]} 12. Bg5 {[%emt 0:05:43]} Bg4 {[%emt 0:04:20]} 13. Qd4 {[%emt 0:08:37]} h5 {[%emt 0:14:35]} 14. exd6 {[%emt 0:11:24]} cxd6 {[%emt 0:00:43]} 15. Qd1 {[%emt 0:06:03]} Ne6 {[%emt 0:07:56]} 16. Bxe7 {[%emt 0:00:58]} Qxe7 {[%emt 0:00:23]} 17. h3 {[%emt 0:00:40]} Bxf3 {[%emt 0:00:35]} 18. Qxf3 {[%emt 0:00:07]} g6 {[%emt 0:01:30]} 19. Nd2 {[%emt 0:02:19]} Rad8 {[%emt 0:01:47]} 20. Rfe1 {[%emt 0:03:11]} d5 {[%emt 0:03:30]} 21. Nb3 {[%emt 0:04:23]} Qh4 {[%emt 0:43:39]} 1/2-1/2

[Event "Irish New Year Events-GM 2020"]
[Site "Dublin"]
[Date "2020.01.04"]
[Round "4.1"]
[White "Li, Henry"]
[Black "Ryan, Joseph"]
[Result "0-1"]
[ECO "B01"]
[WhiteElo "2288"]
[BlackElo "2293"]
[Annotator "ChessBase"]
[PlyCount "126"]
[EventDate "2020.01.02"]
[EventType "tourn"]
[EventCountry "IRL"]
[SourceTitle "playchess.com"]
[Source "ChessBase"]
[SourceQuality "1"]
[TimeControl "5400+30"]

1. e4 {[%emt 0:01:25]} d5 {[%emt 0:00:00]} 2. exd5 {[%emt 0:01:12]} Qxd5 {[%emt 0:00:06]} 3. Nc3 {[%emt 0:00:08]} Qd6 {[%emt 0:00:19]} 4. d4 {[%emt 0:00:23]} Nf6 {[%emt 0:00:06]} 5. Nf3 {[%emt 0:02:57]} c6 {[%emt 0:00:44]} 6. g3 {[%emt 0:02:59]} Bg4 {[%emt 0:04:37]} 7. Bg2 {[%emt 0:05:01]} e6 {[%emt 0:00:34]} 8. O-O {[%emt 0:00:47]} Be7 {[%emt 0:00:15]} 9. Bf4 {[%emt 0:01:27]} Qd8 {[%emt 0:00:18]} 10. h3 {[%emt 0:00:41]} Bxf3 {[%emt 0:00:30]} 11. Qxf3 {[%emt 0:00:57]} O-O {[%emt 0:01:29]} 12. Rad1 {[%emt 0:01:27]} Nbd7 {[%emt 0:01:01]} 13. Rfe1 {[%emt 0:04:11]} Qa5 {[%emt 0:07:13]} 14. a3 {[%emt 0:01:52]} Rfe8 {[%emt 0:06:08]} 15. Ra1 {[%emt 0:12:29]} Qb6 {[%emt 0:07:02]} 16. Qd3 {[%emt 0:12:25]} Rad8 {[%emt 0:12:44]} 17. b4 {[%emt 0:06:08]} Nd5 {[%emt 0:03:08]} 18. Nxd5 {[%emt 0:00:40]} cxd5 {[%emt 0:00:43]} 19. c3 {[%emt 0:00:38]} Rc8 {[%emt 0:04:10]} 20. Bd2 {[%emt 0:02:51]} Qc6 {[%emt 0:02:27]} 21. f4 {[%emt 0:00:44]} Nb6 {[%emt 0:06:33]} 22. f5 {[%emt 0:01:12]} Bf6 {[%emt 0:02:48]} 23. fxe6 {[%emt 0:02:25]} fxe6 {[%emt 0:00:41]} 24. h4 {[%emt 0:07:05]} Nc4 {[%emt 0:04:29]} 25. Bc1 {[%emt 0:00:07]} Nd6 {[%emt 0:04:03]} 26. Bd2 {[%emt 0:00:16]} Qc4 {[%emt 0:04:06]} 27. Qxc4 {[%emt 0:03:02]} Nxc4 {[%emt 0:00:49]} 28. Bg5 {[%emt 0:00:21]} Bxg5 {[%emt 0:04:45]} 29. hxg5 {[%emt 0:00:05]} Kf7 {[%emt 0:02:20]} 30. Ra2 {[%emt 0:00:45]} Nd6 {[%emt 0:00:51]} 31. Rf2+ {[%emt 0:01:08]} Kg6 {[%emt 0:04:13]} 32. Rfe2 {[%emt 0:02:00]} Kf7 {[%emt 0:08:05]} 33. Rf2+ {[%emt 0:00:22]} Ke7 {[%emt 0:00:36]} 34. Re3 {[%emt 0:04:38]} Kd7 {[%emt 0:00:21]} 35. Bf1 {[%emt 0:01:12]} Re7 {[%emt 0:01:27]} 36. a4 {[%emt 0:03:12]} Nf7 {[%emt 0:03:45]} 37. g6 {[%emt 0:00:44]} hxg6 {[%emt 0:00:07]} 38. Bd3 {[%emt 0:00:28]} g5 {[%emt 0:00:44]} 39. Bg6 {[%emt 0:01:26]} Nd6 {[%emt 0:00:16]} 40. Rc2 {[%emt 0:01:51]} Rf8 {[%emt 0:01:20]} 41. Re5 {[%emt 0:03:35]} g4 {[%emt 0:02:01]} 42. Bh5 {[%emt 0:03:39]} Rf5 {[%emt 0:01:11]} 43. Bxg4 {[%emt 0:01:05]} Rxe5 {[%emt 0:00:20]} 44. dxe5 {[%emt 0:00:04]} Nc4 {[%emt 0:00:24]} 45. Re2 {[%emt 0:00:01]} a5 {[%emt 0:00:47]} 46. Kf1 {[%emt 0:04:44]} Re8 {[%emt 0:00:22]} 47. bxa5 {[%emt 0:02:43]} Nxa5 {[%emt 0:01:03]} 48. Rb2 {[%emt 0:00:54]} Kc7 {[%emt 0:00:20]} 49. Rf2 {[%emt 0:00:31]} Re7 {[%emt 0:00:19]} 50. Ke2 {[%emt 0:02:31]} Nc4 {[%emt 0:00:33]} 51. Bh3 {[%emt 0:00:01]} Nxe5 {[%emt 0:00:29]} 52. Ke3 {[%emt 0:00:02]} Nc4+ {[%emt 0:00:54]} 53. Kd4 {[%emt 0:00:29]} Kd6 {[%emt 0:00:09]} 54. Rf8 {[%emt 0:00:03]} e5+ {[%emt 0:00:10]} 55. Kd3 {[%emt 0:00:03]} Nb2+ {[%emt 0:00:49]} 56. Kc2 {[%emt 0:00:45]} Nxa4 {[%emt 0:00:07]} 57. Rd8+ {[%emt 0:00:03]} Kc6 {[%emt 0:00:16]} 58. Bg2 {[%emt 0:00:08]} e4 {[%emt 0:00:48]} 59. c4 {[%emt 0:00:10]} dxc4 {[%emt 0:00:22]} 60. Rc8+ {[%emt 0:00:28]} Kd5 {[%emt 0:00:39]} 61. Bf1 {[%emt 0:00:11]} b5 {[%emt 0:00:23]} 62. Rb8 {[%emt 0:00:08]} Kc5 {[%emt 0:00:33]} 63. Rc8+ {[%emt 0:00:07]} Kb4 {[%emt 0:00:28]} 0-1

[Event "Irish New Year Events-GM 2020"]
[Site "Dublin"]
[Date "2020.01.04"]
[Round "4.3"]
[White "Kosten, Anthony C."]
[Black "Fitzsimons, David"]
[Result "0-1"]
[ECO "A25"]
[WhiteElo "2402"]
[BlackElo "2317"]
[Annotator "ChessBase"]
[PlyCount "52"]
[EventDate "2020.01.02"]
[EventType "tourn"]
[EventCountry "IRL"]
[SourceTitle "playchess.com"]
[Source "ChessBase"]
[SourceQuality "1"]
[TimeControl "5400+30"]

1. c4 {[%emt 0:00:15]} Nf6 {[%emt 0:01:07]} 2. g3 {[%emt 0:00:19]} g6 {[%emt 0:00:16]} 3. Bg2 {[%emt 0:02:11]} Bg7 {[%emt 0:00:07]} 4. Nc3 {[%emt 0:00:06]} O-O {[%emt 0:00:39]} 5. e3 {[%emt 0:01:13]} d6 {[%emt 0:01:17]} 6. Nge2 {[%emt 0:00:26]} e5 {[%emt 0:00:23]} 7. O-O {[%emt 0:01:13]} Nc6 {[%emt 0:01:39]} 8. h3 {[%emt 0:00:49]} Be6 {[%emt 0:02:35]} 9. Nd5 {[%emt 0:00:25]} Ne7 {[%emt 0:01:16]} 10. Nxe7+ {[%emt 0:07:24]} Qxe7 {[%emt 0:00:08]} 11. b3 {[%emt 0:00:27]} Qd7 {[%emt 0:04:00]} 12. Kh2 {[%emt 0:06:19]} d5 {[%emt 0:04:49]} 13. d4 {[%emt 0:00:25]} exd4 {[%emt 0:06:31]} 14. Nxd4 {[%emt 0:01:57]} dxc4 {[%emt 0:01:20]} 15. Ba3 {[%emt 0:01:44]} Rfd8 {[%emt 0:11:35]} 16. Bxb7 {[%emt 0:02:46]} Bxh3 {[%emt 0:00:32]} 17. Bxa8 {[%emt 0:16:17]} Bxf1 {[%emt 0:00:15]} 18. Qxf1 {[%emt 0:01:28]} Rxa8 {[%emt 0:00:16]} 19. Qxc4 {[%emt 0:02:05]} Ng4+ {[%emt 0:02:03]} 20. Kg2 {[%emt 0:05:03]} Ne5 {[%emt 0:01:03]} 21. Qb5 {[%emt 0:15:30]} c6 {[%emt 0:01:03]} 22. Qa5 {[%emt 0:01:15]} Qg4 {[%emt 0:02:36]} 23. Rc1 {[%emt 0:14:42]} Qe4+ {[%emt 0:04:56]} 24. Kg1 {[%emt 0:02:01]} h5 {[%emt 0:04:25]} 25. Bd6 {[%emt 0:08:32]} Ng4 {[%emt 0:06:43]} 26. Bc5 {[%emt 0:06:01]} Nxe3 {[%emt 0:00:47]} 0-1

[Event "Irish New Year Events-GM 2020"]
[Site "Dublin"]
[Date "2020.01.04"]
[Round "4.5"]
[White "Turner, Matthew J"]
[Black "Pajeken, Jakob Leon"]
[Result "1/2-1/2"]
[ECO "C68"]
[WhiteElo "2521"]
[BlackElo "2327"]
[Annotator "RC"]
[PlyCount "50"]
[EventDate "2020.01.02"]
[EventType "tourn"]
[EventCountry "IRL"]
[SourceTitle "playchess.com"]
[Source "ChessBase"]
[SourceQuality "1"]
[TimeControl "5400+30"]

1. e4 {[%emt 0:00:00]} e5 {[%emt 0:00:00]} 2. Nf3 {[%emt 0:00:00]} Nc6 {[%emt 0:00:00]} 3. Bb5 {[%emt 0:00:10]} a6 {[%emt 0:00:00]} 4. Bxc6 {[%emt 0:00:39]} dxc6 {[%emt 0:00:18]} 5. O-O {[%emt 0:00:18]} Qf6 {[%emt 0:00:46]} 6. d4 {[%emt 0:01:12]} exd4 {[%emt 0:00:09]} 7. Bg5 {[%emt 0:00:33]} Qd6 {[%emt 0:00:27]} 8. Nxd4 {[%emt 0:01:17]} Bd7 {[%emt 0:00:43]} 9. Nc3 {[%emt 0:18:19]} Ne7 {[%emt 0:00:31]} 10. Nb3 {[%emt 0:21:44]} Qxd1 {[%emt 0:05:44]} 11. Raxd1 {[%emt 0:00:19]} f6 {[%emt 0:04:17]} 12. Bf4 {[%emt 0:07:52]} O-O-O {[%emt 0:00:15]} 13. Nc5 {[%emt 0:00:40]} Ng6 {[%emt 0:09:39]} 14. Rxd7 {[%emt 0:01:35]} Rxd7 {[%emt 0:00:49]} 15. Nxd7 {[%emt 0:00:04]} Kxd7 {[%emt 0:00:48]} 16. Rd1+ {[%emt 0:00:35]} Bd6 {[%emt 0:00:36]} 17. Bg3 {[%emt 0:00:33]} h5 {[%emt 0:03:25]} 18. Na4 {[%emt 0:05:12]} Ke7 {[%emt 0:00:48]} 19. Bxd6+ {[%emt 0:00:31]} cxd6 {[%emt 0:00:10]} 20. Nb6 {[%emt 0:00:22]} Kd8 {[%emt 0:05:41]} 21. Nc4 {[%emt 0:05:01]} Kc7 {[%emt 0:00:13]} 22. f3 {[%emt 0:00:16]} Ne5 {[%emt 0:02:36]} 23. Ne3 {[%emt 0:00:08]} b5 {[%emt 0:02:51]} 24. Kf2 {[%emt 0:01:23]} g6 {[%emt 0:01:15]} 25. Rd4 {[%emt 0:03:31]} Rb8 {[%emt 0:08:10]} 1/2-1/2